Cogmind - Beta 16.1 @@@ ROGUE MODE // 2026.02.10 @ 07:20:11 Player: Megaknight51 Result: Destroyed by E3-Q0P(R) with Subdweller Beam Cannon Performance ------------- Evolutions (0) 0 Regions Visited (2) 400 Robots Destroyed (21) 105 Value Destroyed (646) 646 Prototype IDs (0) 0 Alien Tech Used (0) 0 Bonus (-93) -93 TOTAL SCORE: 1058 Bonus ------- Friendly Fire -93 Cogmind --------- Core Integrity 0/250 Matter 271/300 Energy 28/160 System Corruption 12% Temperature Cool (9) Movement Treading (260) Ox1 Location -10/Subcaves Parts ------- > --- POWER (1) -------- Light Nuclear Core > --- PROPULSION (2) --- Spiked Treads > --- UTILITY (2) ------ Large Storage Unit Machine Analyzer > --- WEAPON (2) ------- Light EM Pulse Cannon Light EM Pulse Cannon > --- INVENTORY (15) --- Light Ion Engine Light Treads Aluminum Leg Large Matter Pod (150) Sensor Array Signal Interpreter Improved Terrain Scanner Scrap Shield Shotgun Shotgun Grenade Launcher Hammer Scrap Shield Fragment (46) Peak State ------------ > --- POWER ------------ Light Nuclear Core > --- PROPULSION ------- Light Treads Spiked Treads > --- UTILITY ---------- Large Storage Unit Machine Analyzer > --- WEAPON ----------- Light EM Pulse Cannon Light EM Pulse Cannon > --- INVENTORY -------- Light Ion Engine Light Treads Aluminum Leg Large Matter Pod Sensor Array Signal Interpreter Improved Terrain Scanner Scrap Shield Light EM Pulse Cannon Shotgun Shotgun Grenade Launcher Hammer Scrap Shield Fragment [Rating: 16] Favorites ----------- Power Light Ion Engine Engine Light Ion Engine Power Core Light Nuclear Core Propulsion Light Treads Treads Light Treads Utility Large Storage Unit Storage Large Storage Unit Processor Machine Analyzer Weapon Light EM Pulse Cannon Energy Cannon Light EM Pulse Cannon Ballistic Gun Assault Rifle Ballistic Cannon Light Cannon Impact Weapon Hammer Build | -11 -10 -10 ------- Run | Yrd Mat Sub Slots Evolved . | . . . Power . | . . . Propulsion . | . . . Utility . | . . . Weapon . | . . . Parts Attached 19 | 6 5 8 Power 3 | 1 . 2 Engine 2 | 1 . 1 Core 1 | . . 1 Reactor . | . . . Propulsion 5 | 2 1 2 Treads 5 | 2 1 2 Leg . | . . . Wheel . | . . . Hover . | . . . Flight . | . . . Utility 3 | 1 1 1 Device . | . . . Storage 2 | 1 1 . Processor 1 | . . 1 Hackware . | . . . Protection . | . . . Artifact . | . . . Weapon 8 | 2 3 3 Energy Gun . | . . . Energy Cannon 4 | . 2 2 Ballistic Gun 2 | 2 . . Ballistic Cannon 1 | . 1 . Launcher . | . . . Special Weapon . | . . . Impact Weapon 1 | . . 1 Slashing Weapon . | . . . Piercing Weapon . | . . . Special Melee Weapon . | . . . Unidentified Prototypes . | . . . Corrupted Parts 2 | . . 2 System Corruption 9 | . . 9 Parts Lost 4 | . . 4 Power 1 | . . 1 Propulsion 1 | . . 1 Utility . | . . . Weapon 2 | . . 2 Highest Loss Streak 2 | . . 2 To Critical Strikes . | . . . Average Backups 11 | 1 8 13 Power . | . 1 . Propulsion 1 | . . 2 Utility 4 | . 3 4 Weapon 4 | . 3 5 Tool/Special . | . . . Unused Backups 14 | . 2 12 Power . | . . . Propulsion 2 | . . 2 Utility 5 | . . 5 Weapon 7 | . 2 5 Tool/Special . | . . . Average Slot Usage (%) 93 | . 85 96 Engine 6 | . 14 3 Core 7 | . . 10 Treads 28 | . 28 28 Storage 14 | . 14 14 Processor 7 | . . 10 Energy Cannon 20 | . 5 26 Ballistic Gun 3 | . 12 . Ballistic Cannon 3 | . 10 . Peak Build Rating 16 | 6 10 16 Average Rating 11 | 5 7 14 On Entrance 5 | . 6 10 Avg Prop Armor Cover (%) . | . . . Naked Turns . | . . . Heaviest Build 33 | 11 33 33 Greatest Support 40 | 40 40 40 Greatest Overweight (x) . | . . . Average Overweight (x) . | . . . Largest Inventory Capacity 15 | 8 15 15 Average Capacity 13 | 7 11 15 Most Carried 15 | 3 15 15 Average Carried 12 | 1 8 14 Final Capacity 15 | 8 15 15 Final Carried 15 | 3 15 14 Class Distribution -------------------- 100% | Mutant Dominant Class ---------------- Mutant | -10/Materials Mutant | -10/Subcaves Resources | -11 -10 -10 ----------- Run | Yrd Mat Sub Matter Collected 926 | 252 326 348 Remotely . | . . . Salvage Created 880 | 88 230 562 Parts 54 | 8 15 31 Haulers Intercepted . | . . . Recyclers Shooed 1 | . 1 . Parts Field Recycled . | . . . Retrieved Matter . | . . . Parts Self-Destructed 7 | . . 7 Prevented 7 | . . 7 Parts Restored . | . . . Kills | -11 -10 -10 ------- Run | Yrd Mat Sub Combat Hostiles Destroyed 19 | . 8 11 Guns 4 | . 4 . Cannons 14 | . 4 10 AOE 1 | . . 1 Classes Destroyed 7 | 2 2 3 Tunneler 1 | 1 . . Recycler 1 | 1 . . Swarmer 4 | . 3 1 Grunt 8 | . 5 3 Sentry 1 | . . 1 Subdweller 6 | . . 6 Scientist 1 | . . 1 Best Kill Streak 4 | 1 4 2 Combat Bots Only 4 | . 4 2 Max Kills in Single Turn 1 | 1 1 1 Gunslinging . | . . . Exploded 1 | . . 1 Melee . | . . . Uniques/NPCs Destroyed . | . . . Combat | -11 -10 -10 -------- Run | Yrd Mat Sub Hostile Shots Fired 83 | . 32 51 Missed 27 | . 6 21 Hits 56 | . 26 30 Projectile 56 | . 26 30 Critical Strikes 1 | . . 1 Damage Taken 1071 | . 266 805 Core 262 | . 60 202 Absorbed by Shields . | . . . Core Remaining (%) 100 | 100 . . Volleys Fired 80 | 12 31 37 Largest 2 | 2 2 2 Hottest 112 | 40 50 112 Shots Fired 139 | 24 62 53 Gun 55 | 24 31 . Cannon 84 | . 31 53 Launcher . | . . . Special . | . . . Kinetic 86 | 24 62 . Thermal . | . . . Explosive . | . . . Electromagnetic 53 | . . 53 Robot Hit Streak 14 | 5 4 14 Robot Miss Streak 6 | 6 4 1 Penetration Max . | . . . Secondary Targets . | . . . Shots Hit Robots 84 | 11 28 45 Core Hits 35 | 4 13 18 Critical Kills . | . . . Critical Parts Destroyed . | . . . Critical Strikes 1 | . 1 . Blast 1 | . 1 . Melee Attacks 8 | . . 8 Impact 8 | . . 8 Slashing . | . . . Piercing . | . . . Sneak Attacks . | . . . Combat Hostiles . | . . . Follow-up Attacks . | . . . Damage Inflicted 1608 | 120 470 1018 Guns 286 | 120 166 . Cannons 1207 | . 302 905 Explosions 113 | . . 113 Melee . | . . . Ramming 2 | . 2 . Kinetic 588 | 120 468 . Thermal 113 | . . 113 Explosive . | . . . Electromagnetic 905 | . . 905 Impact . | . . . Slashing . | . . . Piercing . | . . . Highest Corruption 12 | . 3 12 Average Corruption 8 | . 2 10 Corruption Purged . | . . . Corruption Blocked . | . . . Effects 78 | . 13 65 Message Errors 18 | . 7 11 Matter Fused 20 | . 1 19 Heat Flow Errors 6 | . . 6 Energy Discharges 11 | . 4 7 Data Loss (minor) 11 | . 1 10 Data Loss (major) 4 | . . 4 Misfires 4 | . . 4 Alerts 3 | . . 3 Weapon Failures 1 | . . 1 Overload Shots . | . . . Overflow Damage . | . . . Projectiles . | . . . Explosions . | . . . Melee . | . . . Knockbacks 7 | . 7 . Impact . | . . . Kinetic 6 | . 6 . Secondary 1 | . 1 . Self-Inflicted Damage 83 | . . 83 Shots 2 | . . 2 Rammed 2 | . 2 . Targets Rammed 2 | . 2 . Kicked . | . . . Crushed . | . . . Highest Temperature 277 | . 6 277 Average Temperature 84 | . 2 102 Received Heat Transfer 517 | . 81 436 Siege Activations . | . . . Martial Activations . | . . . Shielding Activations . | . . . Robots Disrupted . | . . . Combat Hostiles . | . . . Robots Corrupted . | . . . Combat Hostiles . | . . . Parts Fried 5 | . . 5 Impact Corruptions . | . . . Robots Melted . | . . . Combat Hostiles . | . . . Parts Melted . | . . . Heat Transferred 100 | . . 100 Parts Sabotaged . | . . . Parts Stolen . | . . . Parts Stripped . | . . . Power Chain Reactions 3 | . . 3 Alert | -11 -10 -10 ------- Run | Yrd Mat Sub Maximum Alert Level . | . . . Low Security (%) 100 | 100 100 . Level 1 . | . . . Level 2 . | . . . Level 3 . | . . . Level 4 . | . . . Level 5 . | . . . High Security . | . . . Max Security . | . . . Peak Influence 80 | 5 80 . Initial . | . . . Average 20 | . 23 . Influence Increases 367 | 10 247 110 Destroy 0b10 Robot/C 260 | . 160 100 Destroy 0b10 Robot/NC 10 | 10 . . Destroy Leader 40 | . 30 10 Successful Hack 12 | . 12 . Disable Machine 15 | . 15 . Lose Combat Pursuer 30 | . 30 . Influence Decreases 367 | 10 247 110 Time Decay 355 | 10 247 98 Lost Part 12 | . . 12 Squads Dispatched 2 | . 2 . Investigation 1 | . 1 . Extermination . | . . . Reinforcement 1 | . 1 . Assault . | . . . Garrison . | . . . Intercept . | . . . Searches Triggered . | . . . Construction Impeded . | . . . Haulers Reinforced . | . . . Active Scanning Responses . | . . . Cargo Convoy Interrupts . | . . . Stealth | -11 -10 -10 --------- Run | Yrd Mat Sub Distress Signals . | . . . Communications Jammed . | . . . Distress Signals . | . . . Times Spotted 26 | . 13 13 Peak Tracking Total 4 | . 4 2 Tactical Retreats 3 | . 2 1 Traps | -11 -10 -10 ------- Run | Yrd Mat Sub Traps Triggered 6 | . 3 3 Indirectly . | . . . Trap Hack Attempts . | . . . Triggered . | . . . Disarmed . | . . . Reprogrammed . | . . . Reused . | . . . Traps Extracted . | . . . Installed . | . . . Triggered . | . . . Machines | -11 -10 -10 ---------- Run | Yrd Mat Sub Machines Disabled 1 | . 1 . Max in Single Turn 1 | . 1 . Machines Repaired . | . . . Machines Dismantled . | . . . Machines Sabotaged . | . . . Overloaded Fab Kills . | . . . Hacking | -11 -10 -10 --------- Run | Yrd Mat Sub Machines Accessed 3 | . 2 1 Terminals 2 | . 2 . Fabricators . | . . . Repair Stations . | . . . Recycling Units . | . . . Scanalyzers . | . . . Garrison Access . | . . . Total Hacks 11 | . 7 4 Successful 7 | . 3 4 Failed 4 | . 4 . Catastrophic 1 | . 1 . Database Lockouts . | . . . Manual 7 | . 7 . Terminals 7 | . 7 . Fabricators . | . . . Repair Stations . | . . . Recycling Units . | . . . Scanalyzers . | . . . Garrison Access . | . . . Terminal Hacks 7 | . 3 4 Record 4 | . . 4 Robot Analysis 2 | . 2 . Hauler Manifests 1 | . 1 . Fabricator Hacks . | . . . Repair Station Hacks . | . . . Recycling Unit Hacks . | . . . Scanalyzer . | . . . Garrison Access Hacks . | . . . Unauthorized Hacks . | . . . Terminals . | . . . Fabricators . | . . . Repair Stations . | . . . Recycling Units . | . . . Scanalyzers . | . . . Garrison Access . | . . . Data Cores Recovered . | . . . Used . | . . . Hacking Detections 1 | . 1 . Full Trace Events . | . . . Feedback Events . | . . . Feedback Blocked . | . . . Robot Schematics Acquired . | . . . Robots Built . | . . . Authchips . | . . . Time . | . . . Total Robot Build Rating . | . . . Part Schematics Acquired . | . . . Parts Built . | . . . Authchips . | . . . Time . | . . . Total Part Build Rating . | . . . Part Studies Acquired . | . . . Parts Repaired . | . . . Time . | . . . Parts Recycled . | . . . Recycled Matter . | . . . Retrieved Matter . | . . . Retrieved Components . | . . . Parts Scanalyzed . | . . . Part Schematics Acquired . | . . . Parts Damaged . | . . . Bothacking | -11 -10 -10 ------------ Run | Yrd Mat Sub Used RIF Installer . | . . . Robots Hacked . | . . . Non-combat . | . . . Combat . | . . . Robot Hacks Applied . | . . . Relay Couplers Released . | . . . Fabnet Peak Effective % . | . . . Robots Rewired . | . . . Allies Hacked . | . . . Hacks Repelled . | . . . Allies | -11 -10 -10 -------- Run | Yrd Mat Sub Total Allies . | . . . Largest Group . | . . . Highest-Rated Group . | . . . Highest-Rated Ally . | . . . Total Orders . | . . . Ally Attacks . | . . . Total Damage . | . . . Kills . | . . . Allies Corrupted . | . . . Allies Melted . | . . . Intel | -11 -10 -10 ------- Run | Yrd Mat Sub Active Infowar (turns) 1634 | . . 1634 Machine Analysis 1634 | . . 1634 Robot Analysis Total 2 | . 2 . Derelict Logs Recovered 2 | . . 2 Drone Launches . | . . . Drone Recoveries . | . . . Exploration | -11 -10 -10 ------------- Run | Yrd Mat Sub Turns Passed 3171 | 162 908 2101 Spaces Moved 1705 | 77 426 1202 Core 6 | 6 . . Treads 1699 | 71 426 1202 Legs . | . . . Wheels . | . . . Hover . | . . . Flight . | . . . Fastest Speed 50 | 50 160 160 Average Speed 159 | 151 160 160 Slowest Speed 160 | 160 160 160 Overloaded Moves . | . . . Propulsion Burnouts . | . . . Robots Hopped . | . . . Potential Cave-ins . | . . . Cave-ins Triggered . | . . . Exploration Rate (%) 48 | 5 63 76 Regions Visited 2 Branch Regions 1 Pre-discovered Areas 1 | . . 1 Known Exits Taken . | . . . Unknown Exits Taken 2 | 1 1 . Scrap Searched . | . . . Spaces Dug . | . . . Terrain Destroyed 9 | . . 9 Melee . | . . . Projectile . | . . . AOE 9 | . . 9 Terrain Rammed . | . . . Walls Destroyed . | . . . Machines Disabled . | . . . Actions | -11 -10 -10 --------- Run | Yrd Mat Sub Total 2005 | 98 593 1314 Wait 153 | . 107 46 Move 1703 | 76 425 1202 Hop . | . . . Pick Up 23 | 4 15 4 Fast Attach 7 | 5 1 1 Attach 4 | 1 . 3 Detach 1 | . 1 . Swap 12 | . 5 7 Drop 12 | . 6 6 Fire 80 | 12 31 37 Melee 8 | . . 8 Ram . | . . . Kick . | . . . Crush 2 | . 2 . Escape Stasis . | . . . Rewire . | . . . Trap . | . . . Miscellaneous . | . . . Route ------- -11/Scrapyard -10/Materials (discovered 3 exits: [*Mat x2] / *Sub) -10/Subcaves (discovered 3 exits: [*Mat x2] / Rec) History --------- Turn | Location | Event 8 | -11/Scrapyard | Discovered new exit (range 15) 163 | -11/Scrapyard | Entered Materials 303 | -10/Materials | Build established: Mutant 527 | -10/Materials | Discovered new exit (range 4) 599 | -10/Materials | Discovered new exit (range 16) 1033 | -10/Materials | Discovered new exit (range 8) 1071 | -10/Materials | Entered Subcaves 1072 | -10/Subcaves | Approached by a straggling Scientist 1160 | -10/Subcaves | Discovered new exit (range 7) 1248 | -10/Subcaves | Shifting Twisted Machinery released Sub. Beam Cannon 1251 | -10/Subcaves | Shifting Twisted Machinery released Sub. Shrapnel Launcher 1368 | -10/Subcaves | System corruption reached 10% 1830 | -10/Subcaves | Shifting Twisted Machinery released Battle Cannon 1917 | -10/Subcaves | Core integrity fell below 50% 3019 | -10/Subcaves | Learned location of 1 exit from Materials 3020 | -10/Subcaves | Discovered new exit (range 15) 3047 | -10/Subcaves | Visited Clippyterm 3052 | -10/Subcaves | Identified exit to Recycling 3052 | -10/Subcaves | Learned Factory fabricator intel 3093 | -10/Subcaves | Core integrity fell below 20% 3172 | -10/Subcaves | Destroyed by E3-Q0P(R) with Subdweller Beam Cannon Last Messages --------------- It looks like you're defining "roguelike," quit while you're ahead. Please. 03065_ #X7OJ9IQAFJFHVL% XC2OCGAILK85ALJD 03084_ System corrupted: Component data lost. 03092_ System corrupted: Lgt. EM Pulse Cannon failed to cycle. 03092_ Chain reaction triggered in Ion Engine. 03095_ G-34 Mercenary destroyed. 03099_ Acquired 39 matter. 03100_ Heat Sink fries itself beyond repair. 03106_ System corrupted: Component data lost. 03111_ Acquired 42 matter. 03114_ Acquired 10 matter. 03115_ Acquired 11 matter. 03128_ System corrupted: Matter fused (-7). 03143_ System corrupted: FCS attempts to trigger Lgt. EM Pulse Cannon. 03143_ System corrupted: Lgt. EM Pulse Cannon misfires. 03162_ Lgt. EM Pulse Cannon destroyed. 03164_ IC-39S(R) destroyed. 03169_ E3-Q0P(R) affixes Scrap Shield Fragment to Scrap Shield. 03172_ Lgt. Treads destroyed. Map ----- +----------------------------------------------------+ | ?????????????????????????????????????????????????? | | ?????????????????????????????????????????????????? | | ?????????????????????????????????????????????????? | | ?????????????????????????????????????????????????? | | ?????????????????????????????????????????????????? | | ?????????????????????????????????????????????????? | | ?????????????????????????????????????????????????? | | ?????????????????????????????????????????????????? | | ?????????????????????????????????????????????????? | | ?????????????????????????????????????????????????? | | ?????????????????????????????????????????????????? | | ???????????????????????? ????????????????????? | | ??????????????????????? ????????????????????? | | ????????????????????# ????????????????????? | | ?????? ???????????? ????????????????????? | | ?????? ???????????? ?????###????????????? | | ?????? ???"????????? #???? ?????????????? | | ?????? ???"????????? ##### ??????????????? | | ?????? #??"" ????????# ???????????????? | | ??????# #?#"" ????????# ???????????????? | | ??????#"###"" ????????? ????????????????? | | ??????# ##"" ????????? ??????????????????? | | ??##### ####" ?????????? #???????????????????? | | ?##""" "###"###?####### [*#????????????????????? | | ##""<""""" ##" ### # #%!##???????????????????? | | ##" ## @[R ##### #?????????????? | | ## ###" ## #????????????? | | ## #?# ## ### #????????????? | | #?### ##?# #????????????? | | # ### ###??## ## #???????????? | | ## "" #?????## ## #??????????????? | | ?##### ### #???????##? #??????????????? | | ?????# ##?####??????????? ?????????????? | | ????## "## #?????????????????? ???????????? | | ????# #####???????????????????####???????????? | | ????# ##????????????????????????????????????? | | ????# ## #????????????????????????????????????? | | ????## #????????????????????????????????????? | | ????## # #????????????????????????????????????? | | ???## ## #????????????????????????????????????? | | ???# ### # # #???????????????????????????????????? | | ???#"#??# ## #???????????????????????????????????? | | ???# #???### #???????????????????????????????????? | | ???# #???## ?????????????????????????????????????# | | ???# #?## ??????????????????????????????????????# | | ???# #? # ???????????????????????????????????????# | | ???# #? #???????????????????????????????????????# | | ??## ## #???????????????????????????????????????# | | ??# # ##??????????????????????????????????????? | | ??## # #??????????????????????????????????????# | +----------------------------------------------------+ Best States ------------- Heat Dissipation 25 Energy Generation 14 Energy Capacity 160 Matter Stores 300 Matter Capacity 300 Sight Range 16 Terrain Scan Density 10 Evasion (%) 40 Recoil Reduction 2 Item Schematics ----------------- None Robot Schematics ------------------ None Fabricated ------------ Nothing Repaired ---------- Nothing Studied --------- None Alien Tech Used ----------------- None Achievements -------------- My Bad Challenges ------------ None Game ------ Seed AnalysisCompactThrower Manual? 0 Play Time 00:16:58 Cumulative 59.0 hours Start 2026.02.10 @ 07:04:17 End 2026.02.10 @ 07:20:11 Sessions 1 Manual Loads 0 Difficulty Rogue Special Mode None Game No. 121 Rogue 121 Adventurer 0 Explorer 0 Win Type - Total 0 Types 0/0/0/0/0/0/0/0/0/0 Lore% 36 Gallery% 31 Achievement% 29 Wizard Run 0 Options --------- Layout 0 ASCII 0 Keyboard 1 Movement Arrows Keybinds 0 Fullscreen 1 Font 18/Smallcaps Map View 38x25 Zoom Use 78% Tactical HUD 1 Map Filters NONE Filters NONE Steam 1 RUN: ea96978a-f3f4-461f-a937-d9d8dc24f28e